[Event "Norwegian Team Championship 2019"]
[Site "Drammen"]
[Date "2019.05.31"]
[Round "2.6"]
[White "Nilsen, Joachim Birger"]
[Black "Markussen, Petter B"]
[Result "1-0"]
[ECO "E99"]
[WhiteElo "2401"]
[BlackElo "1882"]
[Annotator "ChessBase"]
[PlyCount "69"]
[EventDate "2019.05.30"]
[EventType "swiss"]
[EventCountry "NOR"]
[SourceTitle "playchess.com"]
[Source "ChessBase"]
[SourceQuality "1"]
[TimeControl "40/5400:1800"]

1. c4 {[%emt 0:00:03]} Nf6 {[%emt 0:00:10]} 2. Nc3 {[%emt 0:00:08]} g6 {[%emt 0:00:26]} 3. e4 {[%emt 0:00:15]} d6 {[%emt 0:00:19]} 4. d4 {[%emt 0:00:07]} Bg7 {[%emt 0:00:05]} 5. Be2 {[%emt 0:00:12]} O-O {[%emt 0:00:16]} 6. Nf3 {[%emt 0:00:05]} e5 {[%emt 0:00:12]} 7. O-O {[%emt 0:00:22]} Nc6 {[%emt 0:00:40]} 8. d5 {[%emt 0:00:08]} Ne7 {[%emt 0:00:04]} 9. Ne1 {[%emt 0:02:16]} Nd7 {[%emt 0:00:10]} 10. Be3 {[%emt 0:00:16]} f5 {[%emt 0:00:05]} 11. f3 {[%emt 0:00:04]} f4 {[%emt 0:00:04]} 12. Bf2 {[%emt 0:00:05]} g5 {[%emt 0:00:04]} 13. Rc1 {[%emt 0:00:07]} Ng6 {[%emt 0:00:16]} 14. Nb5 {[%emt 0:00:58]} b6 {[%emt 0:18:51]} 15. b4 {[%emt 0:00:46]} Rf7 {[%emt 0:01:17]} 16. c5 {[%emt 0:12:35]} Nf6 {[%emt 0:00:11]} 17. cxd6 {[%emt 0:01:20]} cxd6 {[%emt 0:00:05]} 18. Qc2 {[%emt 0:01:02]} Ne8 {[%emt 0:05:24]} 19. a4 {[%emt 0:03:17]} h5 {[%emt 0:06:08]} 20. h3 {[%emt 0:04:31]} Bf8 {[%emt 0:08:39]} 21. a5 {[%emt 0:04:35]} g4 {[%emt 0:14:19]} 22. fxg4 {[%emt 0:08:28]} hxg4 {[%emt 0:00:11]} 23. Bxg4 {[%emt 0:01:02]} Bxg4 {[%emt 0:00:21]} 24. hxg4 {[%emt 0:00:01]} Qg5 {[%emt 0:00:28]} 25. axb6 {[%emt 0:15:09]} Rh7 {[%emt 0:05:53]} 26. bxa7 {[%emt 0:04:03]} Qh6 {[%emt 0:02:21]} 27. Bb6 {[%emt 0:01:27]} Nf6 {[%emt 0:01:08]} 28. Kf2 {[%emt 0:09:22]} Nxg4+ {[%emt 0:00:24]} 29. Ke2 {[%emt 0:00:12]} Qh2 {[%emt 0:11:32]} 30. Kd3 {[%emt 0:05:12]} f3 {[%emt 0:02:57]} 31. Nxf3 {[%emt 0:01:36]} Qg3 {[%emt 0:00:29]} 32. Kc3 {[%emt 0:03:23]} Nf4 {[%emt 0:02:53]} 33. Kb2 {[%emt 0:00:48]} Nxg2 {[%emt 0:00:36]} 34. Rg1 {[%emt 0:00:20]} Qxf3 {[%emt 0:00:57]} 35. Qxg2 {[%emt 0:00:19]} 1-0

[Event "Norwegian Team Championship 2019"]
[Site "Drammen"]
[Date "2019.05.31"]
[Round "2.7"]
[White "Jakobsen, Kjetil Ansgar"]
[Black "Stokke, Kjetil"]
[Result "0-1"]
[ECO "B23"]
[WhiteElo "1842"]
[BlackElo "2343"]
[Annotator "ChessBase"]
[PlyCount "86"]
[EventDate "2019.05.30"]
[EventType "swiss"]
[EventCountry "NOR"]
[SourceTitle "playchess.com"]
[Source "ChessBase"]
[SourceQuality "1"]
[TimeControl "40/5400:1800"]

1. e4 {[%emt 0:00:02]} c5 {[%emt 0:00:07]} 2. Nc3 {[%emt 0:00:05]} g6 {[%emt 0:00:06]} 3. Bc4 {[%emt 0:00:09]} Bg7 {[%emt 0:00:07]} 4. d3 {[%emt 0:00:07]} Nc6 {[%emt 0:00:04]} 5. a3 {[%emt 0:00:36]} e6 {[%emt 0:00:08]} 6. Ba2 {[%emt 0:00:14]} Nge7 {[%emt 0:00:52]} 7. f4 {[%emt 0:00:14]} d5 {[%emt 0:00:58]} 8. e5 {[%emt 0:06:18]} b5 {[%emt 0:01:24]} 9. Nf3 {[%emt 0:06:58]} Rb8 {[%emt 0:04:21]} 10. O-O {[%emt 0:02:16]} a5 {[%emt 0:00:10]} 11. a4 {[%emt 0:04:05]} b4 {[%emt 0:01:51]} 12. Nb5 {[%emt 0:01:26]} O-O {[%emt 0:00:08]} 13. c4 {[%emt 0:04:13]} f6 {[%emt 0:06:43]} 14. cxd5 {[%emt 0:11:04]} exd5 {[%emt 0:00:12]} 15. d4 {[%emt 0:01:23]} c4 {[%emt 0:07:37]} 16. Bb1 {[%emt 0:02:31]} Bf5 {[%emt 0:00:40]} 17. Be3 {[%emt 0:01:34]} Qd7 {[%emt 0:02:35]} 18. Qe1 {[%emt 0:03:06]} Na7 {[%emt 0:04:32]} 19. Nd6 {[%emt 0:02:10]} Bxb1 {[%emt 0:00:08]} 20. Qxb1 {[%emt 0:02:47]} Nac8 {[%emt 0:00:41]} 21. Nb5 {[%emt 0:00:33]} Nb6 {[%emt 0:01:19]} 22. Nd6 {[%emt 0:03:24]} Nec8 {[%emt 0:02:52]} 23. f5 {[%emt 0:03:16]} Nxd6 {[%emt 0:00:25]} 24. exd6 {[%emt 0:00:23]} g5 {[%emt 0:02:02]} 25. h4 {[%emt 0:04:36]} Rfe8 {[%emt 0:02:53]} 26. Ne5 {[%emt 0:02:08]} Qxd6 {[%emt 0:07:27]} 27. hxg5 {[%emt 0:00:29]} fxe5 {[%emt 0:00:39]} 28. f6 {[%emt 0:00:35]} exd4 {[%emt 0:07:30]} 29. Bxd4 {[%emt 0:01:24]} Re4 {[%emt 0:00:51]} 30. Qd1 {[%emt 0:04:44]} Rh4 {[%emt 0:05:47]} 31. Rf3 {[%emt 0:02:28]} Nd7 {[%emt 0:03:07]} 32. fxg7 {[%emt 0:06:06]} Re8 {[%emt 0:01:45]} 33. Bf6 {[%emt 0:02:33]} Qc5+ {[%emt 0:01:58]} 34. Rf2 {[%emt 0:00:39]} Nxf6 {[%emt 0:03:45]} 35. gxf6 {[%emt 0:00:27]} Rf4 {[%emt 0:00:04]} 36. Qd2 {[%emt 0:02:25]} Rxf6 {[%emt 0:00:20]} 37. Raf1 {[%emt 0:01:09]} Re5 {[%emt 0:02:52]} 38. g4 {[%emt 0:00:21]} Rxf2 {[%emt 0:02:51]} 39. Rxf2 {[%emt 0:00:37]} Qe3 {[%emt 0:00:10]} 40. Qxe3 {[%emt 0:00:14]} Rxe3 {[%emt 0:00:09]} 41. Rf5 {[%emt 0:06:02]} c3 {[%emt 0:00:17]} 42. bxc3 {[%emt 0:00:42]} bxc3 {[%emt 0:00:04]} 43. Rxd5 {[%emt 0:00:29]} c2 {[%emt 0:00:04]} 0-1

[Event "Norwegian Team Championship 2019"]
[Site "Drammen"]
[Date "2019.05.31"]
[Round "2.8"]
[White "Gullaksen, Eirik"]
[Black "Hanssen, Ken Runar"]
[Result "1-0"]
[ECO "D58"]
[WhiteElo "2327"]
[BlackElo "1594"]
[Annotator "ChessBase"]
[PlyCount "53"]
[EventDate "2019.05.30"]
[EventType "swiss"]
[EventCountry "NOR"]
[SourceTitle "playchess.com"]
[Source "ChessBase"]
[SourceQuality "1"]
[TimeControl "40/5400:1800"]

1. d4 {[%emt 0:00:04]} Nf6 {[%emt 0:00:06]} 2. c4 {[%emt 0:00:06]} e6 {[%emt 0:00:09]} 3. Nf3 {[%emt 0:00:09]} d5 {[%emt 0:00:07]} 4. Nc3 {[%emt 0:00:49]} b6 {[%emt 0:01:35]} 5. cxd5 {[%emt 0:01:31]} exd5 {[%emt 0:00:36]} 6. Bg5 {[%emt 0:00:25]} Be7 {[%emt 0:00:11]} 7. e3 {[%emt 0:00:46]} h6 {[%emt 0:00:54]} 8. Bh4 {[%emt 0:00:15]} O-O {[%emt 0:00:14]} 9. Bd3 {[%emt 0:00:35]} Be6 {[%emt 0:00:54]} 10. O-O {[%emt 0:03:50]} Nbd7 {[%emt 0:02:51]} 11. Rc1 {[%emt 0:04:15]} c5 {[%emt 0:01:06]} 12. b3 {[%emt 0:01:27]} Re8 {[%emt 0:12:23]} 13. h3 {[%emt 0:05:08]} Qb8 {[%emt 0:07:45]} 14. Bb5 {[%emt 0:07:48]} Qb7 {[%emt 0:02:09]} 15. Ne5 {[%emt 0:03:08]} Rac8 {[%emt 0:18:03]} 16. Qe2 {[%emt 0:03:44]} c4 {[%emt 0:13:28]} 17. bxc4 {[%emt 0:01:32]} a6 {[%emt 0:10:30]} 18. Nxd7 {[%emt 0:06:22]} Nxd7 {[%emt 0:03:05]} 19. Bxd7 {[%emt 0:00:31]} Qxd7 {[%emt 0:01:11]} 20. Bxe7 {[%emt 0:00:16]} Rxe7 {[%emt 0:00:45]} 21. Nxd5 {[%emt 0:03:53]} Bxd5 {[%emt 0:00:42]} 22. cxd5 {[%emt 0:00:09]} b5 {[%emt 0:01:17]} 23. Qd3 {[%emt 0:01:33]} Qb7 {[%emt 0:01:10]} 24. Rc5 {[%emt 0:00:23]} Rd7 {[%emt 0:05:43]} 25. e4 {[%emt 0:00:27]} f6 {[%emt 0:00:37]} 26. Rfc1 {[%emt 0:00:53]} Rcd8 {[%emt 0:00:51]} 27. Qc3 {[%emt 0:00:54]} 1-0

[Event "Norwegian Team Championship 2019"]
[Site "Drammen"]
[Date "2019.05.31"]
[Round "2.9"]
[White "Gandrud, Vegar Koi"]
[Black "Egeland, Finn"]
[Result "1-0"]
[ECO "E15"]
[WhiteElo "2325"]
[BlackElo "2086"]
[Annotator "ChessBase"]
[PlyCount "83"]
[EventDate "2019.05.30"]
[EventType "swiss"]
[EventCountry "NOR"]
[SourceTitle "playchess.com"]
[Source "ChessBase"]
[SourceQuality "1"]
[TimeControl "40/5400:1800"]

1. d4 {[%emt 0:00:01]} Nf6 {[%emt 0:00:06]} 2. c4 {[%emt 0:00:05]} e6 {[%emt 0:00:07]} 3. Nf3 {[%emt 0:00:06]} b6 {[%emt 0:00:14]} 4. g3 {[%emt 0:00:06]} Ba6 {[%emt 0:00:16]} 5. Nbd2 {[%emt 0:00:11]} d5 {[%emt 0:00:35]} 6. Bg2 {[%emt 0:00:58]} Be7 {[%emt 0:00:17]} 7. O-O {[%emt 0:00:38]} O-O {[%emt 0:00:22]} 8. b3 {[%emt 0:06:03]} c5 {[%emt 0:00:58]} 9. e3 {[%emt 0:05:21]} Nc6 {[%emt 0:00:55]} 10. Bb2 {[%emt 0:00:19]} Rc8 {[%emt 0:02:54]} 11. Qe2 {[%emt 0:03:48]} Qc7 {[%emt 0:07:20]} 12. Rac1 {[%emt 0:08:54]} Qb8 {[%emt 0:01:20]} 13. Rfd1 {[%emt 0:00:52]} Rfe8 {[%emt 0:04:47]} 14. Ne5 {[%emt 0:12:02]} Nxe5 {[%emt 0:07:10]} 15. dxe5 {[%emt 0:00:06]} Nd7 {[%emt 0:00:13]} 16. f4 {[%emt 0:01:04]} Nf8 {[%emt 0:04:45]} 17. Qf3 {[%emt 0:06:28]} Red8 {[%emt 0:01:09]} 18. f5 {[%emt 0:06:36]} Bg5 {[%emt 0:00:43]} 19. h4 {[%emt 0:01:23]} Bh6 {[%emt 0:03:02]} 20. g4 {[%emt 0:00:16]} g6 {[%emt 0:02:50]} 21. g5 {[%emt 0:00:15]} Bg7 {[%emt 0:00:13]} 22. f6 {[%emt 0:00:22]} Bh8 {[%emt 0:00:06]} 23. Qf4 {[%emt 0:05:25]} Rd7 {[%emt 0:01:16]} 24. Nb1 {[%emt 0:02:50]} Rcd8 {[%emt 0:02:08]} 25. Nc3 {[%emt 0:01:44]} dxc4 {[%emt 0:02:30]} 26. Rxd7 {[%emt 0:05:14]} Rxd7 {[%emt 0:03:22]} 27. Ne4 {[%emt 0:00:09]} Bb7 {[%emt 0:06:00]} 28. Nd6 {[%emt 0:04:21]} Bxg2 {[%emt 0:00:28]} 29. Kxg2 {[%emt 0:00:05]} cxb3 {[%emt 0:00:37]} 30. axb3 {[%emt 0:00:12]} a5 {[%emt 0:00:31]} 31. Qf3 {[%emt 0:02:45]} Rc7 {[%emt 0:00:49]} 32. Rd1 {[%emt 0:00:29]} b5 {[%emt 0:08:10]} 33. Qe2 {[%emt 0:00:14]} Qa8+ {[%emt 0:01:08]} 34. e4 {[%emt 0:00:30]} b4 {[%emt 0:04:20]} 35. Qb5 {[%emt 0:00:21]} h6 {[%emt 0:02:28]} 36. Kf3 {[%emt 0:00:52]} Qa7 {[%emt 0:07:57]} 37. Qe8 {[%emt 0:01:39]} Qa6 {[%emt 0:03:51]} 38. gxh6 {[%emt 0:00:40]} c4 {[%emt 0:02:58]} 39. bxc4 {[%emt 0:01:01]} a4 {[%emt 0:00:23]} 40. h7+ {[%emt 0:00:42]} Kxh7 {[%emt 0:00:20]} 41. Qxf8 {[%emt 0:30:06]} a3 {[%emt 0:30:20]} 42. Nxf7 {[%emt 0:00:26]} 1-0

[Event "Norwegian Team Championship 2019"]
[Site "Drammen"]
[Date "2019.05.31"]
[Round "2.10"]
[White "Grover, Sigurd Loe"]
[Black "Storme, Isak"]
[Result "0-1"]
[ECO "B10"]
[WhiteElo "2028"]
[BlackElo "2309"]
[Annotator "ChessBase"]
[PlyCount "52"]
[EventDate "2019.05.30"]
[EventType "swiss"]
[EventCountry "NOR"]
[SourceTitle "playchess.com"]
[Source "ChessBase"]
[SourceQuality "1"]
[TimeControl "40/5400:1800"]

1. c4 {[%emt 0:00:15]} c6 {[%emt 0:00:16]} 2. e4 {[%emt 0:00:39]} d5 {[%emt 0:00:28]} 3. exd5 {[%emt 0:00:55]} cxd5 {[%emt 0:00:06]} 4. cxd5 {[%emt 0:00:11]} Nf6 {[%emt 0:00:09]} 5. Nc3 {[%emt 0:00:04]} Nxd5 {[%emt 0:00:16]} 6. Nf3 {[%emt 0:00:04]} Nc6 {[%emt 0:00:42]} 7. Bb5 {[%emt 0:00:04]} e6 {[%emt 0:02:48]} 8. O-O {[%emt 0:00:10]} Be7 {[%emt 0:01:14]} 9. d4 {[%emt 0:00:09]} O-O {[%emt 0:00:25]} 10. Re1 {[%emt 0:00:07]} Nxc3 {[%emt 0:15:39]} 11. bxc3 {[%emt 0:00:06]} Qa5 {[%emt 0:04:15]} 12. Qb3 {[%emt 0:20:18]} Rd8 {[%emt 0:04:51]} 13. Bf4 {[%emt 0:12:08]} Nb4 {[%emt 0:12:47]} 14. Re5 {[%emt 0:10:44]} Nd5 {[%emt 0:01:36]} 15. Bd2 {[%emt 0:01:43]} Qc7 {[%emt 0:03:48]} 16. Bd3 {[%emt 0:07:25]} b6 {[%emt 0:04:27]} 17. Qc2 {[%emt 0:09:13]} g6 {[%emt 0:02:20]} 18. h4 {[%emt 0:00:54]} Bf6 {[%emt 0:01:23]} 19. Re4 {[%emt 0:06:43]} Bb7 {[%emt 0:00:59]} 20. c4 {[%emt 0:04:52]} Ne7 {[%emt 0:01:16]} 21. Rf4 {[%emt 0:01:35]} Nf5 {[%emt 0:00:55]} 22. Bxf5 {[%emt 0:03:26]} exf5 {[%emt 0:00:08]} 23. Ne5 {[%emt 0:04:22]} Be4 {[%emt 0:03:02]} 24. Qc3 {[%emt 0:00:40]} Rxd4 {[%emt 0:00:35]} 25. Ng4 {[%emt 0:01:08]} Bg7 {[%emt 0:00:44]} 26. Re1 {[%emt 0:00:46]} fxg4 {[%emt 0:00:41]} 0-1

[Event "Norwegian Team Championship 2019"]
[Site "Drammen"]
[Date "2019.05.31"]
[Round "2.11"]
[White "Ranaldi, Lucas"]
[Black "Rueda-Kjeldsen, Juan Carlos"]
[Result "1-0"]
[ECO "A38"]
[WhiteElo "2237"]
[BlackElo "1963"]
[Annotator "ChessBase"]
[PlyCount "57"]
[EventDate "2019.05.30"]
[EventType "swiss"]
[EventCountry "NOR"]
[SourceTitle "playchess.com"]
[Source "ChessBase"]
[SourceQuality "1"]
[TimeControl "40/5400:1800"]

1. Nf3 {[%emt 0:00:03]} c5 {[%emt 0:00:53]} 2. c4 {[%emt 0:00:09]} Nf6 {[%emt 0:01:00]} 3. g3 {[%emt 0:00:36]} d5 {[%emt 0:01:44]} 4. cxd5 {[%emt 0:00:10]} Nxd5 {[%emt 0:00:57]} 5. Bg2 {[%emt 0:00:17]} Nc6 {[%emt 0:01:10]} 6. Nc3 {[%emt 0:00:10]} g6 {[%emt 0:05:54]} 7. O-O {[%emt 0:00:12]} Bg7 {[%emt 0:00:23]} 8. Nxd5 {[%emt 0:00:08]} Qxd5 {[%emt 0:00:12]} 9. d3 {[%emt 0:00:04]} O-O {[%emt 0:01:17]} 10. Be3 {[%emt 0:00:05]} Qd6 {[%emt 0:04:30]} 11. Rc1 {[%emt 0:00:08]} b6 {[%emt 0:05:51]} 12. d4 {[%emt 0:09:32]} c4 {[%emt 0:26:07]} 13. b3 {[%emt 0:22:43]} Ba6 {[%emt 0:13:05]} 14. bxc4 {[%emt 0:06:17]} Rac8 {[%emt 0:00:55]} 15. Qa4 {[%emt 0:02:51]} Na5 {[%emt 0:01:28]} 16. c5 {[%emt 0:01:34]} Qb8 {[%emt 0:04:42]} 17. Bf4 {[%emt 0:05:41]} Qa8 {[%emt 0:06:17]} 18. Ne5 {[%emt 0:01:15]} Bb7 {[%emt 0:00:50]} 19. c6 {[%emt 0:01:33]} Ba6 {[%emt 0:03:18]} 20. Nd7 {[%emt 0:03:57]} Rfe8 {[%emt 0:01:08]} 21. Rc2 {[%emt 0:03:21]} h6 {[%emt 0:01:11]} 22. h4 {[%emt 0:00:18]} Kh7 {[%emt 0:00:43]} 23. Rfc1 {[%emt 0:00:56]} Rg8 {[%emt 0:00:23]} 24. Nb8 {[%emt 0:07:40]} e5 {[%emt 0:01:59]} 25. Nxa6 {[%emt 0:00:25]} exf4 {[%emt 0:00:09]} 26. c7 {[%emt 0:00:16]} Nb7 {[%emt 0:00:20]} 27. Qc6 {[%emt 0:00:59]} fxg3 {[%emt 0:03:02]} 28. Qxb7 {[%emt 0:00:10]} gxf2+ {[%emt 0:00:03]} 29. Kf1 {[%emt 0:00:45]} 1-0

[Event "Norwegian Team Championship 2019"]
[Site "Drammen"]
[Date "2019.05.31"]
[Round "2.12"]
[White "Omtvedt, Per"]
[Black "Vitenberg, Noam Aviv"]
[Result "0-1"]
[ECO "B19"]
[WhiteElo "1894"]
[BlackElo "2256"]
[Annotator "ChessBase"]
[PlyCount "110"]
[EventDate "2019.05.30"]
[EventType "swiss"]
[EventCountry "NOR"]
[SourceTitle "playchess.com"]
[Source "ChessBase"]
[SourceQuality "1"]
[TimeControl "40/5400:1800"]

1. e4 {[%emt 0:00:10]} c6 {[%emt 0:00:08]} 2. d4 {[%emt 0:00:08]} d5 {[%emt 0:00:06]} 3. Nc3 {[%emt 0:00:10]} dxe4 {[%emt 0:00:13]} 4. Nxe4 {[%emt 0:00:06]} Bf5 {[%emt 0:00:08]} 5. Ng3 {[%emt 0:00:09]} Bg6 {[%emt 0:00:08]} 6. Nf3 {[%emt 0:00:22]} Nd7 {[%emt 0:00:16]} 7. h4 {[%emt 0:00:29]} h6 {[%emt 0:00:10]} 8. h5 {[%emt 0:00:04]} Bh7 {[%emt 0:00:05]} 9. Bd3 {[%emt 0:00:11]} Bxd3 {[%emt 0:00:08]} 10. Qxd3 {[%emt 0:00:06]} e6 {[%emt 0:00:10]} 11. Bd2 {[%emt 0:00:43]} Ngf6 {[%emt 0:00:10]} 12. O-O-O {[%emt 0:00:29]} Be7 {[%emt 0:00:15]} 13. Kb1 {[%emt 0:01:53]} O-O {[%emt 0:00:13]} 14. Ne4 {[%emt 0:04:19]} Nxe4 {[%emt 0:00:31]} 15. Qxe4 {[%emt 0:00:08]} Nf6 {[%emt 0:00:07]} 16. Qe2 {[%emt 0:01:05]} Qd5 {[%emt 0:00:27]} 17. Ne5 {[%emt 0:08:19]} Qe4 {[%emt 0:00:30]} 18. Qxe4 {[%emt 0:06:54]} Nxe4 {[%emt 0:00:06]} 19. Be3 {[%emt 0:00:31]} Rac8 {[%emt 0:03:46]} 20. g4 {[%emt 0:04:01]} Rfd8 {[%emt 0:07:57]} 21. f3 {[%emt 0:02:06]} Nf6 {[%emt 0:02:33]} 22. c3 {[%emt 0:02:57]} b5 {[%emt 0:02:08]} 23. Rhg1 {[%emt 0:06:43]} Nd5 {[%emt 0:02:05]} 24. Bc1 {[%emt 0:01:13]} c5 {[%emt 0:16:19]} 25. f4 {[%emt 0:03:18]} cxd4 {[%emt 0:09:00]} 26. cxd4 {[%emt 0:00:23]} Nf6 {[%emt 0:02:42]} 27. g5 {[%emt 0:05:09]} hxg5 {[%emt 0:11:11]} 28. Rxg5 {[%emt 0:00:25]} Ne4 {[%emt 0:02:53]} 29. Rg2 {[%emt 0:00:51]} Nd6 {[%emt 0:01:03]} 30. Be3 {[%emt 0:06:50]} Nf5 {[%emt 0:01:03]} 31. Bg1 {[%emt 0:01:25]} Rd5 {[%emt 0:05:05]} 32. Rc2 {[%emt 0:04:20]} Rxc2 {[%emt 0:00:32]} 33. Kxc2 {[%emt 0:00:07]} Ng3 {[%emt 0:01:53]} 34. Nc6 {[%emt 0:04:20]} Bd6 {[%emt 0:01:01]} 35. Nxa7 {[%emt 0:00:27]} Bxf4 {[%emt 0:00:46]} 36. Nc8 {[%emt 0:00:20]} Rxh5 {[%emt 0:05:50]} 37. d5 {[%emt 0:00:17]} exd5 {[%emt 0:00:49]} 38. Ne7+ {[%emt 0:00:14]} Kh7 {[%emt 0:01:04]} 39. Rxd5 {[%emt 0:00:48]} Rh1 {[%emt 0:02:07]} 40. Bd4 {[%emt 0:01:51]} Ne2 {[%emt 0:03:06]} 41. Bc3 {[%emt 0:31:21]} Rc1+ {[%emt 0:30:49]} 42. Kb3 {[%emt 0:01:30]} Nxc3 {[%emt 0:00:00]} 43. Rh5+ {[%emt 0:00:00]} Bh6 {[%emt 0:00:00]} 44. bxc3 {[%emt 0:00:00]} g5 {[%emt 0:00:00]} 45. Kb4 {[%emt 0:00:00]} g4 {[%emt 0:00:00]} 46. Ng8 {[%emt 0:00:00]} Kxg8 {[%emt 0:00:00]} 47. Rxh6 {[%emt 0:00:00]} Kg7 {[%emt 0:00:00]} 48. Rh2 {[%emt 0:00:00]} f5 {[%emt 0:00:00]} 49. Kxb5 {[%emt 0:00:00]} Rxc3 {[%emt 0:00:00]} 50. a4 {[%emt 0:00:00]} g3 {[%emt 0:00:00]} 51. Rg2 {[%emt 0:00:00]} f4 {[%emt 0:00:00]} 52. a5 {[%emt 0:00:00]} Kf6 {[%emt 0:00:00]} 53. a6 {[%emt 0:00:00]} Kf5 {[%emt 0:00:00]} 54. a7 {[%emt 0:00:00]} Ra3 {[%emt 0:00:00]} 55. Kb6 {[%emt 0:00:00]} Kg4 {[%emt 0:00:00]} 0-1

[Event "Norwegian Team Championship 2019"]
[Site "Drammen"]
[Date "2019.05.31"]
[Round "2.13"]
[White "Hjelmas, Lars"]
[Black "Gonzalez, Francisco Silva"]
[Result "1-0"]
[ECO "E04"]
[WhiteElo "2251"]
[BlackElo "2125"]
[Annotator "ChessBase"]
[PlyCount "108"]
[EventDate "2019.05.30"]
[EventType "swiss"]
[EventCountry "NOR"]
[SourceTitle "playchess.com"]
[Source "ChessBase"]
[SourceQuality "1"]
[TimeControl "40/5400:1800"]

1. d4 {[%emt 0:00:02]} Nf6 {[%emt 0:00:09]} 2. c4 {[%emt 0:00:05]} e6 {[%emt 0:00:07]} 3. g3 {[%emt 0:00:06]} d5 {[%emt 0:00:08]} 4. Bg2 {[%emt 0:00:09]} dxc4 {[%emt 0:03:36]} 5. Nf3 {[%emt 0:00:52]} Nc6 {[%emt 0:00:29]} 6. Qa4 {[%emt 0:04:13]} Bb4+ {[%emt 0:01:03]} 7. Bd2 {[%emt 0:01:58]} Nd5 {[%emt 0:00:51]} 8. Bxb4 {[%emt 0:06:37]} Ndxb4 {[%emt 0:00:11]} 9. O-O {[%emt 0:01:20]} Rb8 {[%emt 0:00:43]} 10. Nc3 {[%emt 0:07:39]} a6 {[%emt 0:03:07]} 11. Ne5 {[%emt 0:02:53]} O-O {[%emt 0:00:17]} 12. Nxc6 {[%emt 0:00:12]} Nxc6 {[%emt 0:00:22]} 13. Bxc6 {[%emt 0:00:26]} bxc6 {[%emt 0:00:10]} 14. Qxc4 {[%emt 0:00:10]} Qd6 {[%emt 0:00:25]} 15. b3 {[%emt 0:02:59]} Rb4 {[%emt 0:00:36]} 16. Ne4 {[%emt 0:00:10]} Qxd4 {[%emt 0:00:12]} 17. Qxd4 {[%emt 0:01:42]} Rxd4 {[%emt 0:00:14]} 18. f3 {[%emt 0:01:10]} f5 {[%emt 0:03:19]} 19. Nc5 {[%emt 0:01:44]} e5 {[%emt 0:10:36]} 20. Rfd1 {[%emt 0:06:52]} Rd5 {[%emt 0:08:01]} 21. Rdc1 {[%emt 0:03:53]} a5 {[%emt 0:08:31]} 22. Rc4 {[%emt 0:04:15]} Rfd8 {[%emt 0:04:26]} 23. Kf2 {[%emt 0:01:12]} Rd4 {[%emt 0:09:15]} 24. Rac1 {[%emt 0:02:08]} R8d5 {[%emt 0:07:39]} 25. Rxd4 {[%emt 0:04:35]} exd4 {[%emt 0:02:14]} 26. f4 {[%emt 0:02:05]} Kf7 {[%emt 0:05:04]} 27. Nd3 {[%emt 0:04:04]} Bd7 {[%emt 0:00:13]} 28. Ne5+ {[%emt 0:03:02]} Ke7 {[%emt 0:00:17]} 29. Ke1 {[%emt 0:05:55]} c5 {[%emt 0:01:49]} 30. a4 {[%emt 0:00:28]} g5 {[%emt 0:02:40]} 31. h4 {[%emt 0:02:36]} gxh4 {[%emt 0:02:09]} 32. gxh4 {[%emt 0:00:05]} Be8 {[%emt 0:00:11]} 33. Kd2 {[%emt 0:00:22]} Kd8 {[%emt 0:03:08]} 34. Nc4 {[%emt 0:03:31]} Bf7 {[%emt 0:02:18]} 35. Nxa5 {[%emt 0:00:42]} Kd7 {[%emt 0:00:09]} 36. Nc4 {[%emt 0:00:21]} Kc8 {[%emt 0:01:05]} 37. Ne5 {[%emt 0:01:06]} Be6 {[%emt 0:00:06]} 38. Nd3 {[%emt 0:00:37]} c4 {[%emt 0:00:09]} 39. Rxc4 {[%emt 0:00:15]} Rd6 {[%emt 0:00:27]} 40. Rb4 {[%emt 0:00:45]} Bd5 {[%emt 0:00:11]} 41. Rxd4 {[%emt 0:32:34]} Bxb3 {[%emt 0:30:16]} 42. Rxd6 {[%emt 0:00:09]} cxd6 {[%emt 0:00:04]} 43. a5 {[%emt 0:00:13]} Kd7 {[%emt 0:00:18]} 44. Nb4 {[%emt 0:00:38]} Bc4 {[%emt 0:00:25]} 45. e3 {[%emt 0:00:08]} Bf1 {[%emt 0:00:54]} 46. Kc3 {[%emt 0:01:03]} Bg2 {[%emt 0:00:06]} 47. Kc4 {[%emt 0:00:41]} Kc7 {[%emt 0:00:09]} 48. Nd5+ {[%emt 0:00:28]} Kb7 {[%emt 0:00:16]} 49. Nf6 {[%emt 0:00:09]} h6 {[%emt 0:00:25]} 50. Ng8 {[%emt 0:00:00]} h5 {[%emt 0:00:00]} 51. Nf6 {[%emt 0:00:00]} Bf3 {[%emt 0:00:00]} 52. Ne8 {[%emt 0:00:00]} Kc6 {[%emt 0:00:00]} 53. Ng7 {[%emt 0:00:00]} Bg4 {[%emt 0:00:00]} 54. Kd4 {[%emt 0:00:00]} Kd7 {[%emt 0:14:02]} 1-0